[Event "Titled Tuesday Blitz February 15 Late 2022"]
[White "Kujawski, Adam"]
[Black "Karttunen, Mika"]
[WhiteFideId "1100920"]
[BlackFideId "502081"]
[WhiteElo "2053"]
[BlackElo "2343"]
[Result "0-1"]
[Round "09"]
[TimeControl "180+1"]
[Date "2022.02.16"]
[WhiteClock "0:00:05"]
[BlackClock "0:00:24"]

1. e4 {[%clk 0:02:52]}  g6 {[%clk 0:03:00]} 2. d4 {[%clk 0:02:52]}  Bg7 {[%clk 0:03:00]} 3. Nc3 {[%clk 0:02:51]}  d6 {[%clk 0:02:59]} 4. h3 {[%clk 0:02:51]}  a6 {[%clk 0:02:58]} 5. a4 {[%clk 0:02:50]}  Nf6 {[%clk 0:02:53]} 6. Nf3 {[%clk 0:02:50]}  O-O {[%clk 0:02:52]} 7. Be2 {[%clk 0:02:50]}  c5 {[%clk 0:02:51]} 8. d5 {[%clk 0:02:48]}  e6 {[%clk 0:02:51]} 9. O-O {[%clk 0:02:47]}  exd5 {[%clk 0:02:51]} 10. exd5 {[%clk 0:02:48]}  Nbd7 {[%clk 0:02:48]} 11. Re1 {[%clk 0:02:26]}  Qc7 {[%clk 0:02:46]} 12. Bf4 {[%clk 0:02:18]}  b6 {[%clk 0:02:33]} 13. Nd2 {[%clk 0:02:10]}  Ne5 {[%clk 0:02:21]} 14. Bxe5 {[%clk 0:02:01]}  dxe5 {[%clk 0:02:22]} 15. Nc4 {[%clk 0:02:01]}  e4 {[%clk 0:01:51]} 16. d6 {[%clk 0:01:44]}  Qb7 {[%clk 0:01:51]} 17. a5 {[%clk 0:01:39]}  b5 {[%clk 0:01:43]} 18. Nb6 {[%clk 0:01:37]}  Be6 {[%clk 0:01:43]} 19. Nxa8 {[%clk 0:01:31]}  Qxa8 {[%clk 0:01:43]} 20. Bg4 {[%clk 0:00:30]}  Nxg4 {[%clk 0:01:38]} 21. hxg4 {[%clk 0:00:30]}  f5 {[%clk 0:01:39]} 22. gxf5 {[%clk 0:00:20]}  gxf5 {[%clk 0:01:38]} 23. Qh5 {[%clk 0:00:17]}  Qc6 {[%clk 0:01:31]} 24. Rad1 {[%clk 0:00:17]}  b4 {[%clk 0:01:21]} 25. d7 {[%clk 0:00:13]}  Bf6 {[%clk 0:01:08]} 26. Qh6 {[%clk 0:00:08]}  Bd8 {[%clk 0:00:47]} 27. Ne2 {[%clk 0:00:07]}  Rf6 {[%clk 0:00:38]} 28. Qg5+ {[%clk 0:00:07]}  Kf7 {[%clk 0:00:38]} 29. Nf4 {[%clk 0:00:07]}  Bxd7 {[%clk 0:00:38]} 30. Qh5+ {[%clk 0:00:07]}  Kg7 {[%clk 0:00:38]} 31. Qg5+ {[%clk 0:00:07]}  Kf8 {[%clk 0:00:38]} 32. Nh5 {[%clk 0:00:05]}  Ke8 {[%clk 0:00:23]} 33. Nxf6+ {[%clk 0:00:04]}  Bxf6 {[%clk 0:00:23]} 34. Qh5+ {[%clk 0:00:04]}  Kf8 {[%clk 0:00:20]} 35. Qxh7 {[%clk 0:00:05]}  Bg7 {[%clk 0:00:20]} 36. Qh5 {[%clk 0:00:04]}  Be6 {[%clk 0:00:20]} 37. Qe2 {[%clk 0:00:05]}  Ke7 {[%clk 0:00:20]} 38. b3 {[%clk 0:00:05]}  c4 {[%clk 0:00:20]} 39. bxc4 {[%clk 0:00:05]}  Bxc4 {[%clk 0:00:21]} 40. Qe3 {[%clk 0:00:05]}  Bf6 {[%clk 0:00:20]} 41. Qh6 {[%clk 0:00:05]}  Bf7 {[%clk 0:00:20]} 42. Qh7 {[%clk 0:00:06]}  Qb5 {[%clk 0:00:19]} 43. Qh3 {[%clk 0:00:05]}  Qxa5 {[%clk 0:00:20]} 44. Qe3 {[%clk 0:00:04]}  Qb5 {[%clk 0:00:20]} 45. Qa7+ {[%clk 0:00:04]}  Kf8 {[%clk 0:00:20]} 46. Qa8+ {[%clk 0:00:04]}  Kg7 {[%clk 0:00:21]} 47. Qc8 {[%clk 0:00:04]}  a5 {[%clk 0:00:20]} 48. Rd8 {[%clk 0:00:03]}  Bxd8 {[%clk 0:00:20]} 49. Qxd8 {[%clk 0:00:03]}  Qe5 {[%clk 0:00:20]} 50. Qg5+ {[%clk 0:00:04]}  Kf8 {[%clk 0:00:20]} 51. Rd1 {[%clk 0:00:04]}  Be8 {[%clk 0:00:19]} 52. Qh6+ {[%clk 0:00:04]}  Qg7 {[%clk 0:00:18]} 53. Qxg7+ {[%clk 0:00:04]}  Kxg7 {[%clk 0:00:18]} 54. Ra1 {[%clk 0:00:05]}  a4 {[%clk 0:00:18]} 55. Kf1 {[%clk 0:00:05]}  a3 {[%clk 0:00:19]} 56. Ke1 {[%clk 0:00:06]}  Bf7 {[%clk 0:00:19]} 57. Kd2 {[%clk 0:00:06]}  a2 {[%clk 0:00:20]} 58. Kc1 {[%clk 0:00:06]}  Kf6 {[%clk 0:00:20]} 59. Kb2 {[%clk 0:00:06]}  Ke5 {[%clk 0:00:21]} 60. Re1 {[%clk 0:00:07]}  Bd5 {[%clk 0:00:21]} 61. Re3 {[%clk 0:00:07]}  f4 {[%clk 0:00:21]} 62. Rh3 {[%clk 0:00:07]}  Kd4 {[%clk 0:00:22]} 63. Rh5 {[%clk 0:00:06]}  e3 {[%clk 0:00:21]} 64. fxe3+ {[%clk 0:00:06]}  fxe3 {[%clk 0:00:22]} 65. Rh4+ {[%clk 0:00:07]}  Be4 {[%clk 0:00:21]} 66. Rh1 {[%clk 0:00:07]}  Bd5 {[%clk 0:00:21]} 67. Re1 {[%clk 0:00:05]}  Bc4 {[%clk 0:00:21]} 68. g4 {[%clk 0:00:04]}  e2 {[%clk 0:00:22]} 69. g5 {[%clk 0:00:04]}  Ke5 {[%clk 0:00:22]} 70. g6 {[%clk 0:00:04]}  Kf6 {[%clk 0:00:23]} 71. Rxe2 {[%clk 0:00:03]}  Bxe2 {[%clk 0:00:21]} 72. Kxa2 {[%clk 0:00:04]}  Bc4+ {[%clk 0:00:22]} 73. Kb2 {[%clk 0:00:04]}  Kxg6 {[%clk 0:00:22]} 74. Kc1 {[%clk 0:00:04]}  Kf5 {[%clk 0:00:22]} 75. Kd2 {[%clk 0:00:05]}  Ke4 {[%clk 0:00:23]} 76. c3 {[%clk 0:00:04]}  b3 {[%clk 0:00:23]} 77. Kc1 {[%clk 0:00:04]}  Kd3 {[%clk 0:00:23]} 78. Kb2 {[%clk 0:00:05]}  Kd2 {[%clk 0:00:24]} 0-1


[Site "https://www.chess.com"]

[Event "Titled Tuesday Blitz February 15 Late 2022"]
[White "Medeiros Jr, Francisco De Assis"]
[Black "Petrovic, Aleksa"]
[WhiteFideId "2114267"]
[BlackFideId "967629"]
[WhiteElo "1998"]
[BlackElo "2139"]
[Result "0-1"]
[Round "09"]
[TimeControl "180+1"]
[Date "2022.02.16"]
[WhiteClock "0:00:03"]
[BlackClock "0:00:11"]

1. d4 {[%clk 0:03:00]}  Nf6 {[%clk 0:02:58]} 2. Nf3 {[%clk 0:03:01]}  d5 {[%clk 0:02:55]} 3. Bg5 {[%clk 0:03:01]}  Ne4 {[%clk 0:02:54]} 4. Bf4 {[%clk 0:03:01]}  Nd7 {[%clk 0:02:52]} 5. Nbd2 {[%clk 0:03:01]}  Ndf6 {[%clk 0:02:50]} 6. e3 {[%clk 0:03:00]}  g6 {[%clk 0:02:48]} 7. Bd3 {[%clk 0:03:00]}  Bg7 {[%clk 0:02:48]} 8. O-O {[%clk 0:03:00]}  O-O {[%clk 0:02:48]} 9. c4 {[%clk 0:02:58]}  c6 {[%clk 0:02:44]} 10. Rc1 {[%clk 0:02:58]}  b6 {[%clk 0:02:35]} 11. Qb3 {[%clk 0:02:55]}  Nxd2 {[%clk 0:02:26]} 12. Nxd2 {[%clk 0:02:54]}  Be6 {[%clk 0:02:23]} 13. h3 {[%clk 0:02:44]}  dxc4 {[%clk 0:02:16]} 14. Bxc4 {[%clk 0:02:45]}  Nd5 {[%clk 0:02:15]} 15. Bg3 {[%clk 0:02:42]}  b5 {[%clk 0:02:14]} 16. Bxd5 {[%clk 0:02:06]}  Bxd5 {[%clk 0:02:15]} 17. Qa3 {[%clk 0:02:03]}  a5 {[%clk 0:02:10]} 18. b3 {[%clk 0:02:00]}  b4 {[%clk 0:02:07]} 19. Qb2 {[%clk 0:02:00]}  a4 {[%clk 0:02:07]} 20. Nc4 {[%clk 0:01:59]}  axb3 {[%clk 0:02:03]} 21. axb3 {[%clk 0:02:00]}  Ra6 {[%clk 0:01:48]} 22. Ra1 {[%clk 0:01:55]}  Qa8 {[%clk 0:01:47]} 23. Rxa6 {[%clk 0:01:54]}  Qxa6 {[%clk 0:01:47]} 24. Ra1 {[%clk 0:01:53]}  Qb7 {[%clk 0:01:46]} 25. f3 {[%clk 0:01:25]}  Ra8 {[%clk 0:01:42]} 26. Rxa8+ {[%clk 0:01:24]}  Qxa8 {[%clk 0:01:43]} 27. Be5 {[%clk 0:01:20]}  Bxc4 {[%clk 0:01:36]} 28. Bxg7 {[%clk 0:01:16]}  Qa3 {[%clk 0:01:25]} 29. d5 {[%clk 0:00:45]}  f6 {[%clk 0:00:40]} 30. Bxf6 {[%clk 0:00:10]}  exf6 {[%clk 0:00:41]} 31. Qxf6 {[%clk 0:00:07]}  Qc1+ {[%clk 0:00:41]} 32. Kh2 {[%clk 0:00:07]}  Bxd5 {[%clk 0:00:41]} 33. Qd8+ {[%clk 0:00:06]}  Kf7 {[%clk 0:00:42]} 34. Qd7+ {[%clk 0:00:06]}  Kf6 {[%clk 0:00:42]} 35. Qd6+ {[%clk 0:00:06]}  Kg7 {[%clk 0:00:40]} 36. Qe7+ {[%clk 0:00:06]}  Bf7 {[%clk 0:00:35]} 37. Qe5+ {[%clk 0:00:06]}  Kf8 {[%clk 0:00:30]} 38. Qd6+ {[%clk 0:00:05]}  Ke8 {[%clk 0:00:29]} 39. Qb8+ {[%clk 0:00:04]}  Ke7 {[%clk 0:00:29]} 40. Qc7+ {[%clk 0:00:03]}  Ke6 {[%clk 0:00:28]} 41. Qc8+ {[%clk 0:00:04]}  Kd6 {[%clk 0:00:15]} 42. Qd8+ {[%clk 0:00:03]}  Kc5 {[%clk 0:00:14]} 43. Qe7+ {[%clk 0:00:04]}  Kb5 {[%clk 0:00:14]} 44. Qxf7 {[%clk 0:00:05]}  Qxe3 {[%clk 0:00:14]} 45. Qc4+ {[%clk 0:00:05]}  Ka5 {[%clk 0:00:13]} 46. Qxc6 {[%clk 0:00:04]}  Qe5+ {[%clk 0:00:11]} 47. Kg1 {[%clk 0:00:04]}  Qc3 {[%clk 0:00:10]} 48. Qd5+ {[%clk 0:00:04]}  Kb6 {[%clk 0:00:10]} 49. Qd6+ {[%clk 0:00:04]}  Kb5 {[%clk 0:00:09]} 50. Qd5+ {[%clk 0:00:04]}  Qc5+ {[%clk 0:00:08]} 51. Qxc5+ {[%clk 0:00:05]}  Kxc5 {[%clk 0:00:09]} 52. f4 {[%clk 0:00:05]}  Kd4 {[%clk 0:00:09]} 53. g4 {[%clk 0:00:06]}  Ke4 {[%clk 0:00:08]} 54. Kg2 {[%clk 0:00:05]}  Kxf4 {[%clk 0:00:09]} 55. Kf2 {[%clk 0:00:05]}  Ke4 {[%clk 0:00:09]} 56. Ke2 {[%clk 0:00:05]}  g5 {[%clk 0:00:09]} 57. Kd2 {[%clk 0:00:05]}  Kd4 {[%clk 0:00:10]} 58. Kc2 {[%clk 0:00:02]}  Ke3 {[%clk 0:00:10]} 59. Kb2 {[%clk 0:00:02]}  Kd2 {[%clk 0:00:10]} 60. Ka2 {[%clk 0:00:03]}  Kc2 {[%clk 0:00:11]} 61. Ka1 {[%clk 0:00:03]}  Kxb3 {[%clk 0:00:11]} 0-1


[Site "https://www.chess.com"]

[Event "Titled Tuesday Blitz February 15 Late 2022"]
[White "Mirzoev, Azer"]
[Black "Zierk, Steven"]
[WhiteFideId "13400304"]
[BlackFideId "2034255"]
[WhiteElo "2525"]
[BlackElo "2494"]
[Result "1/2-1/2"]
[Round "09"]
[TimeControl "180+1"]
[Date "2022.02.15"]
[WhiteClock "0:00:05"]
[BlackClock "0:00:04"]

1. d4 {[%clk 0:03:00]}  d5 {[%clk 0:02:59]} 2. Nf3 {[%clk 0:03:00]}  Nf6 {[%clk 0:02:59]} 3. Bf4 {[%clk 0:02:58]}  c5 {[%clk 0:02:59]} 4. e3 {[%clk 0:02:58]}  e6 {[%clk 0:02:59]} 5. c3 {[%clk 0:02:57]}  Bd6 {[%clk 0:02:59]} 6. Nbd2 {[%clk 0:02:57]}  O-O {[%clk 0:02:58]} 7. Bd3 {[%clk 0:02:53]}  cxd4 {[%clk 0:02:51]} 8. Bxd6 {[%clk 0:02:49]}  Qxd6 {[%clk 0:02:52]} 9. exd4 {[%clk 0:02:49]}  Nbd7 {[%clk 0:02:44]} 10. O-O {[%clk 0:02:49]}  b6 {[%clk 0:02:43]} 11. Re1 {[%clk 0:02:48]}  Bb7 {[%clk 0:02:43]} 12. Ne5 {[%clk 0:02:48]}  a5 {[%clk 0:02:36]} 13. Qe2 {[%clk 0:02:37]}  a4 {[%clk 0:02:31]} 14. a3 {[%clk 0:02:36]}  Qc7 {[%clk 0:02:29]} 15. Rad1 {[%clk 0:02:33]}  Nxe5 {[%clk 0:02:28]} 16. dxe5 {[%clk 0:02:32]}  Nd7 {[%clk 0:02:28]} 17. Nf3 {[%clk 0:02:31]}  h6 {[%clk 0:02:22]} 18. Nd4 {[%clk 0:02:29]}  Nc5 {[%clk 0:02:13]} 19. Bb1 {[%clk 0:02:28]}  Ba6 {[%clk 0:02:04]} 20. Qc2 {[%clk 0:02:28]}  g6 {[%clk 0:02:01]} 21. Qd2 {[%clk 0:02:26]}  Kg7 {[%clk 0:01:59]} 22. Re3 {[%clk 0:02:11]}  Nb3 {[%clk 0:01:53]} 23. Nxb3 {[%clk 0:02:08]}  axb3 {[%clk 0:01:54]} 24. Rde1 {[%clk 0:02:07]}  Bb5 {[%clk 0:01:46]} 25. Rh3 {[%clk 0:02:03]}  Rh8 {[%clk 0:01:45]} 26. Rg3 {[%clk 0:02:01]}  Ra4 {[%clk 0:01:42]} 27. h3 {[%clk 0:01:48]}  Qe7 {[%clk 0:01:33]} 28. Qd1 {[%clk 0:01:46]}  Bc4 {[%clk 0:01:32]} 29. Qd4 {[%clk 0:01:40]}  b5 {[%clk 0:01:20]} 30. Qd2 {[%clk 0:01:32]}  Rd8 {[%clk 0:01:11]} 31. Rg4 {[%clk 0:01:28]}  d4 {[%clk 0:00:58]} 32. Rxd4 {[%clk 0:01:00]}  Rxd4 {[%clk 0:00:55]} 33. Qxd4 {[%clk 0:00:59]}  Bd5 {[%clk 0:00:53]} 34. Qe3 {[%clk 0:00:55]}  Qh4 {[%clk 0:00:37]} 35. Bd3 {[%clk 0:00:50]}  Bc4 {[%clk 0:00:31]} 36. Be4 {[%clk 0:00:49]}  Qg5 {[%clk 0:00:26]} 37. Qxg5 {[%clk 0:00:48]}  hxg5 {[%clk 0:00:27]} 38. Rd1 {[%clk 0:00:43]}  Kf8 {[%clk 0:00:22]} 39. Rd4 {[%clk 0:00:40]}  Ke7 {[%clk 0:00:21]} 40. f3 {[%clk 0:00:37]}  Ra7 {[%clk 0:00:19]} 41. Kf2 {[%clk 0:00:35]}  Rc7 {[%clk 0:00:19]} 42. Ke3 {[%clk 0:00:34]}  Rc5 {[%clk 0:00:20]} 43. f4 {[%clk 0:00:32]}  gxf4+ {[%clk 0:00:20]} 44. Kxf4 {[%clk 0:00:32]}  g5+ {[%clk 0:00:20]} 45. Kxg5 {[%clk 0:00:31]}  Rxe5+ {[%clk 0:00:20]} 46. Kf4 {[%clk 0:00:31]}  Rc5 {[%clk 0:00:21]} 47. Ke3 {[%clk 0:00:30]}  f5 {[%clk 0:00:21]} 48. Bf3 {[%clk 0:00:29]}  e5 {[%clk 0:00:21]} 49. Rd2 {[%clk 0:00:27]}  Kf6 {[%clk 0:00:20]} 50. h4 {[%clk 0:00:26]}  f4+ {[%clk 0:00:20]} 51. Ke4 {[%clk 0:00:24]}  Be6 {[%clk 0:00:20]} 52. Rd6 {[%clk 0:00:22]}  Ke7 {[%clk 0:00:20]} 53. Rb6 {[%clk 0:00:21]}  Bd5+ {[%clk 0:00:20]} 54. Kf5 {[%clk 0:00:21]}  e4 {[%clk 0:00:14]} 55. Bxe4 {[%clk 0:00:19]}  Ba8+ {[%clk 0:00:14]} 56. Kxf4 {[%clk 0:00:19]}  Rc4 {[%clk 0:00:15]} 57. Rxb5 {[%clk 0:00:15]}  Bxe4 {[%clk 0:00:15]} 58. Kg3 {[%clk 0:00:15]}  Bc2 {[%clk 0:00:15]} 59. h5 {[%clk 0:00:15]}  Kf7 {[%clk 0:00:15]} 60. h6 {[%clk 0:00:14]}  Re4 {[%clk 0:00:15]} 61. Rb6 {[%clk 0:00:13]}  Re1 {[%clk 0:00:14]} 62. a4 {[%clk 0:00:12]}  Rb1 {[%clk 0:00:14]} 63. a5 {[%clk 0:00:12]}  Rxb2 {[%clk 0:00:14]} 64. a6 {[%clk 0:00:12]}  Ra2 {[%clk 0:00:15]} 65. Rb7+ {[%clk 0:00:12]}  Kf6 {[%clk 0:00:13]} 66. a7 {[%clk 0:00:12]}  Be4 {[%clk 0:00:11]} 67. Rxb3 {[%clk 0:00:10]}  Rxa7 {[%clk 0:00:12]} 68. Kf4 {[%clk 0:00:10]}  Bxg2 {[%clk 0:00:11]} 69. Rb6+ {[%clk 0:00:11]}  Kf7 {[%clk 0:00:11]} 70. c4 {[%clk 0:00:11]}  Ra4 {[%clk 0:00:10]} 71. Kg5 {[%clk 0:00:11]}  Ra5+ {[%clk 0:00:09]} 72. Kf4 {[%clk 0:00:10]}  Rh5 {[%clk 0:00:08]} 73. Kg4 {[%clk 0:00:10]}  Rh1 {[%clk 0:00:08]} 74. Kg5 {[%clk 0:00:10]}  Be4 {[%clk 0:00:08]} 75. Rf6+ {[%clk 0:00:09]}  Kg8 {[%clk 0:00:07]} 76. Re6 {[%clk 0:00:09]}  Bd3 {[%clk 0:00:08]} 77. c5 {[%clk 0:00:09]}  Rg1+ {[%clk 0:00:08]} 78. Kf4 {[%clk 0:00:09]}  Rc1 {[%clk 0:00:08]} 79. c6 {[%clk 0:00:09]}  Bb5 {[%clk 0:00:08]} 80. Re8+ {[%clk 0:00:08]}  Kh7 {[%clk 0:00:08]} 81. Re7+ {[%clk 0:00:07]}  Kxh6 {[%clk 0:00:08]} 82. c7 {[%clk 0:00:07]}  Kg6 {[%clk 0:00:08]} 83. Ke5 {[%clk 0:00:08]}  Bf1 {[%clk 0:00:04]} 84. Kd6 {[%clk 0:00:07]}  Bh3 {[%clk 0:00:04]} 85. Re8 {[%clk 0:00:06]}  Bf5 {[%clk 0:00:04]} 86. Rf8 {[%clk 0:00:05]}  Rd1+ {[%clk 0:00:03]} 87. Kc6 {[%clk 0:00:05]}  Rc1+ {[%clk 0:00:02]} 88. Kd6 {[%clk 0:00:05]}  Kg5 {[%clk 0:00:01]} 89. Rxf5+ {[%clk 0:00:04]}  Kxf5 {[%clk 0:00:02]} 90. Kd7 {[%clk 0:00:04]}  Rd1+ {[%clk 0:00:03]} 91. Ke7 {[%clk 0:00:05]}  Rc1 {[%clk 0:00:04]} 92. Kd7 {[%clk 0:00:05]}  Rxc7+ {[%clk 0:00:04]} 93. Kxc7 {[%clk 0:00:05]} 1/2-1/2


[Site "https://www.chess.com"]

[Event "Titled Tuesday Blitz February 15 Late 2022"]
[White "Miszler, Levente"]
[Black "Janaszak, Dawid"]
[WhiteFideId "763276"]
[BlackFideId "1119206"]
[WhiteElo "1966"]
[BlackElo "2199"]
[Result "1-0"]
[Round "09"]
[TimeControl "180+1"]
[Date "2022.02.16"]
[WhiteClock "0:00:48"]
[BlackClock "0:00:46"]

1. Nf3 {[%clk 0:03:00]}  c5 {[%clk 0:03:00]} 2. c4 {[%clk 0:03:00]}  g6 {[%clk 0:03:00]} 3. Nc3 {[%clk 0:02:58]}  Bg7 {[%clk 0:03:00]} 4. g3 {[%clk 0:02:58]}  Nc6 {[%clk 0:03:00]} 5. Bg2 {[%clk 0:02:58]}  d6 {[%clk 0:03:00]} 6. O-O {[%clk 0:02:56]}  e5 {[%clk 0:03:01]} 7. a3 {[%clk 0:02:53]}  Nge7 {[%clk 0:02:58]} 8. Rb1 {[%clk 0:02:54]}  Be6 {[%clk 0:02:57]} 9. d3 {[%clk 0:02:51]}  a5 {[%clk 0:02:56]} 10. Ne1 {[%clk 0:02:45]}  d5 {[%clk 0:02:56]} 11. cxd5 {[%clk 0:02:46]}  Nxd5 {[%clk 0:02:56]} 12. Nxd5 {[%clk 0:02:46]}  Bxd5 {[%clk 0:02:57]} 13. Bxd5 {[%clk 0:02:44]}  Qxd5 {[%clk 0:02:58]} 14. Nc2 {[%clk 0:02:44]}  O-O {[%clk 0:02:46]} 15. b4 {[%clk 0:02:44]}  cxb4 {[%clk 0:02:43]} 16. axb4 {[%clk 0:02:45]}  a4 {[%clk 0:02:43]} 17. b5 {[%clk 0:02:45]}  Na5 {[%clk 0:02:35]} 18. Ba3 {[%clk 0:02:31]}  Rfc8 {[%clk 0:02:31]} 19. Ne3 {[%clk 0:02:30]}  Qa2 {[%clk 0:02:22]} 20. Bb4 {[%clk 0:02:08]}  Nb3 {[%clk 0:02:14]} 21. Nc4 {[%clk 0:02:07]}  Rxc4 {[%clk 0:01:59]} 22. dxc4 {[%clk 0:02:07]}  Nd4 {[%clk 0:01:59]} 23. e3 {[%clk 0:02:00]}  Nc2 {[%clk 0:01:52]} 24. Bc3 {[%clk 0:01:49]}  Qxc4 {[%clk 0:01:34]} 25. Qxc2 {[%clk 0:01:47]}  Rc8 {[%clk 0:01:34]} 26. Rfc1 {[%clk 0:01:41]}  e4 {[%clk 0:01:34]} 27. Rb4 {[%clk 0:01:28]}  Qc5 {[%clk 0:01:25]} 28. Rxa4 {[%clk 0:01:17]}  Bxc3 {[%clk 0:01:24]} 29. Qb3 {[%clk 0:01:08]}  Rc7 {[%clk 0:00:50]} 30. Ra3 {[%clk 0:01:02]}  Qh5 {[%clk 0:00:50]} 31. Rxc3 {[%clk 0:00:48]}  Rxc3 {[%clk 0:00:50]} 32. Qxc3 {[%clk 0:00:49]}  Qd1+ {[%clk 0:00:50]} 33. Kg2 {[%clk 0:00:50]}  Qf3+ {[%clk 0:00:51]} 34. Kf1 {[%clk 0:00:50]}  Qd1+ {[%clk 0:00:45]} 35. Qe1 {[%clk 0:00:49]}  Qd3+ {[%clk 0:00:46]} 36. Rxd3 {[%clk 0:00:48]} 1-0


[Site "https://www.chess.com"]

[Event "Titled Tuesday Blitz February 15 Late 2022"]
[White "Moral Garcia, Serafin"]
[Black "Adewumi, Tanitoluwa"]
[WhiteFideId "2201925"]
[BlackFideId "30966396"]
[WhiteElo "2228"]
[BlackElo "2533"]
[Result "1-0"]
[Round "09"]
[TimeControl "180+1"]
[Date "2022.02.16"]
[WhiteClock "0:00:22"]
[BlackClock "0:00:04"]

1. e4 {[%clk 0:02:59]}  e6 {[%clk 0:02:59]} 2. d4 {[%clk 0:02:59]}  d5 {[%clk 0:03:00]} 3. Nd2 {[%clk 0:02:59]}  Nf6 {[%clk 0:03:00]} 4. e5 {[%clk 0:02:59]}  Nfd7 {[%clk 0:03:00]} 5. c3 {[%clk 0:02:59]}  c5 {[%clk 0:03:00]} 6. Bd3 {[%clk 0:02:59]}  Nc6 {[%clk 0:03:01]} 7. Ne2 {[%clk 0:02:59]}  Qb6 {[%clk 0:02:58]} 8. Nf3 {[%clk 0:02:59]}  cxd4 {[%clk 0:02:50]} 9. cxd4 {[%clk 0:02:58]}  f6 {[%clk 0:02:47]} 10. exf6 {[%clk 0:02:57]}  Nxf6 {[%clk 0:02:42]} 11. O-O {[%clk 0:02:57]}  Bd6 {[%clk 0:02:40]} 12. b3 {[%clk 0:02:54]}  O-O {[%clk 0:02:37]} 13. Bf4 {[%clk 0:02:51]}  Bxf4 {[%clk 0:02:34]} 14. Nxf4 {[%clk 0:02:51]}  Ne4 {[%clk 0:02:32]} 15. Ne2 {[%clk 0:02:50]}  Bd7 {[%clk 0:02:26]} 16. Qc1 {[%clk 0:02:46]}  Nb4 {[%clk 0:02:06]} 17. Bxe4 {[%clk 0:01:52]}  dxe4 {[%clk 0:02:07]} 18. Ng5 {[%clk 0:01:52]}  Bb5 {[%clk 0:02:00]} 19. Qd2 {[%clk 0:01:42]}  Bd3 {[%clk 0:01:46]} 20. Ng3 {[%clk 0:01:34]}  Bxf1 {[%clk 0:01:38]} 21. Rxf1 {[%clk 0:01:26]}  Rae8 {[%clk 0:01:32]} 22. N5xe4 {[%clk 0:01:23]}  Nc6 {[%clk 0:01:21]} 23. Rd1 {[%clk 0:01:20]}  Rd8 {[%clk 0:01:11]} 24. Qg5 {[%clk 0:01:16]}  Nxd4 {[%clk 0:01:08]} 25. Re1 {[%clk 0:01:16]}  Rd5 {[%clk 0:01:01]} 26. Qg4 {[%clk 0:01:13]}  Nf5 {[%clk 0:00:59]} 27. Nh5 {[%clk 0:01:12]}  Kh8 {[%clk 0:00:49]} 28. h3 {[%clk 0:01:08]}  Qb4 {[%clk 0:00:40]} 29. Rc1 {[%clk 0:01:03]}  Rd4 {[%clk 0:00:31]} 30. f3 {[%clk 0:01:03]}  g6 {[%clk 0:00:27]} 31. Nf4 {[%clk 0:01:02]}  Qb6 {[%clk 0:00:20]} 32. Kh1 {[%clk 0:00:58]}  Kg7 {[%clk 0:00:16]} 33. Rc7+ {[%clk 0:00:53]}  Rf7 {[%clk 0:00:14]} 34. Nh5+ {[%clk 0:00:52]}  Kf8 {[%clk 0:00:11]} 35. Rc8+ {[%clk 0:00:52]}  Rd8 {[%clk 0:00:09]} 36. Rxd8+ {[%clk 0:00:47]}  Qxd8 {[%clk 0:00:10]} 37. Nf4 {[%clk 0:00:47]}  Qd1+ {[%clk 0:00:10]} 38. Kh2 {[%clk 0:00:47]}  Qd7 {[%clk 0:00:11]} 39. Ng5 {[%clk 0:00:45]}  Re7 {[%clk 0:00:09]} 40. h4 {[%clk 0:00:42]}  Qc7 {[%clk 0:00:10]} 41. Kh3 {[%clk 0:00:41]}  Ne3 {[%clk 0:00:10]} 42. Nfxe6+ {[%clk 0:00:38]}  Kg8 {[%clk 0:00:08]} 43. Qe4 {[%clk 0:00:34]}  Qd7 {[%clk 0:00:06]} 44. Qxe3 {[%clk 0:00:33]}  h6 {[%clk 0:00:06]} 45. Qe4 {[%clk 0:00:31]}  hxg5 {[%clk 0:00:06]} 46. Qxg6+ {[%clk 0:00:31]}  Kh8 {[%clk 0:00:06]} 47. Qf6+ {[%clk 0:00:30]}  Kh7 {[%clk 0:00:05]} 48. Qf5+ {[%clk 0:00:30]}  Kg8 {[%clk 0:00:04]} 49. Qg6+ {[%clk 0:00:26]}  Kh8 {[%clk 0:00:02]} 50. Qh6+ {[%clk 0:00:27]}  Kg8 {[%clk 0:00:03]} 51. Qxg5+ {[%clk 0:00:27]}  Kf7 {[%clk 0:00:03]} 52. Qf5+ {[%clk 0:00:27]}  Kg8 {[%clk 0:00:02]} 53. Qg4+ {[%clk 0:00:25]}  Kh8 {[%clk 0:00:01]} 54. Ng5 {[%clk 0:00:25]}  Qxg4+ {[%clk 0:00:02]} 55. Kxg4 {[%clk 0:00:25]}  Re2 {[%clk 0:00:03]} 56. g3 {[%clk 0:00:23]}  Rxa2 {[%clk 0:00:03]} 57. Ne4 {[%clk 0:00:23]}  Rb2 {[%clk 0:00:04]} 58. Nc5 {[%clk 0:00:20]}  b6 {[%clk 0:00:04]} 59. Ne6 {[%clk 0:00:21]}  Rxb3 {[%clk 0:00:04]} 60. f4 {[%clk 0:00:21]}  a5 {[%clk 0:00:04]} 61. h5 {[%clk 0:00:21]}  a4 {[%clk 0:00:05]} 62. f5 {[%clk 0:00:22]}  a3 {[%clk 0:00:05]} 63. f6 {[%clk 0:00:22]}  Kg8 {[%clk 0:00:06]} 64. h6 {[%clk 0:00:21]}  Rb4+ {[%clk 0:00:05]} 65. Kh5 {[%clk 0:00:21]}  a2 {[%clk 0:00:04]} 66. Ng5 {[%clk 0:00:22]}  a1=Q {[%clk 0:00:03]} 67. f7+ {[%clk 0:00:21]}  Kf8 {[%clk 0:00:04]} 68. Kg6 {[%clk 0:00:22]}  Qf6+ {[%clk 0:00:04]} 69. Kxf6 {[%clk 0:00:22]}  Rg4 {[%clk 0:00:04]} 70. Ne6# {[%clk 0:00:22]} 1-0


[Site "https://www.chess.com"]

[Event "Titled Tuesday Blitz February 15 Late 2022"]
[White "Moroni, Luca Jr"]
[Black "Moskalenko, Alexander"]
[WhiteFideId "865834"]
[BlackFideId "4155351"]
[WhiteElo "2573"]
[BlackElo "2515"]
[Result "0-1"]
[Round "09"]
[TimeControl "180+1"]
[Date "2022.02.15"]
[WhiteClock "0:00:33"]
[BlackClock "0:01:31"]

1. d4 {[%clk 0:03:00]}  e6 {[%clk 0:02:55]} 2. c4 {[%clk 0:03:00]}  Bb4+ {[%clk 0:02:55]} 3. Bd2 {[%clk 0:03:00]}  a5 {[%clk 0:02:55]} 4. Nf3 {[%clk 0:02:58]}  f5 {[%clk 0:02:55]} 5. Nc3 {[%clk 0:02:56]}  Nf6 {[%clk 0:02:54]} 6. e3 {[%clk 0:02:56]}  O-O {[%clk 0:02:53]} 7. Be2 {[%clk 0:02:56]}  b6 {[%clk 0:02:52]} 8. O-O {[%clk 0:02:56]}  Bb7 {[%clk 0:02:53]} 9. a3 {[%clk 0:02:55]}  Bxc3 {[%clk 0:02:53]} 10. Bxc3 {[%clk 0:02:56]}  Ne4 {[%clk 0:02:51]} 11. Be1 {[%clk 0:02:56]}  a4 {[%clk 0:02:48]} 12. Nd2 {[%clk 0:02:56]}  Nxd2 {[%clk 0:02:48]} 13. Qxd2 {[%clk 0:02:55]}  d6 {[%clk 0:02:43]} 14. f3 {[%clk 0:02:55]}  Nd7 {[%clk 0:02:42]} 15. Rc1 {[%clk 0:02:47]}  Qe7 {[%clk 0:02:42]} 16. d5 {[%clk 0:02:47]}  Nc5 {[%clk 0:02:40]} 17. dxe6 {[%clk 0:02:44]}  Nb3 {[%clk 0:02:39]} 18. Qc3 {[%clk 0:02:42]}  Nxc1 {[%clk 0:02:39]} 19. Qxc1 {[%clk 0:02:43]}  Qxe6 {[%clk 0:02:39]} 20. Bf2 {[%clk 0:02:39]}  Rfe8 {[%clk 0:02:31]} 21. Re1 {[%clk 0:02:37]}  Ba6 {[%clk 0:02:27]} 22. Bf1 {[%clk 0:02:36]}  Bb7 {[%clk 0:02:14]} 23. Rd1 {[%clk 0:02:30]}  Bc6 {[%clk 0:02:13]} 24. Rd4 {[%clk 0:02:29]}  Ra5 {[%clk 0:02:12]} 25. Qc3 {[%clk 0:02:29]}  Re5 {[%clk 0:02:11]} 26. Rf4 {[%clk 0:02:23]}  g6 {[%clk 0:02:08]} 27. h4 {[%clk 0:02:17]}  Rxe3 {[%clk 0:02:07]} 28. Qd2 {[%clk 0:02:08]}  Re1 {[%clk 0:01:57]} 29. c5 {[%clk 0:01:55]}  bxc5 {[%clk 0:01:48]} 30. h5 {[%clk 0:01:34]}  Bb5 {[%clk 0:01:43]} 31. Bxe1 {[%clk 0:01:23]}  Qxe1 {[%clk 0:01:43]} 32. Qd5+ {[%clk 0:01:24]}  Kg7 {[%clk 0:01:41]} 33. h6+ {[%clk 0:01:21]}  Kf6 {[%clk 0:01:41]} 34. Kh2 {[%clk 0:01:12]}  Qxf1 {[%clk 0:01:36]} 35. Qb7 {[%clk 0:00:33]}  Re2 {[%clk 0:01:31]} 0-1


[Site "https://www.chess.com"]